bitfinex-derivatives/quotes_SOLF0:USTF0_20260226
["timestamp","ask_amount","ask_price","bid_price","bid_amount"]
[1772100733929,12.56260483,88.299,88.21,13.48530022]
[1772100734136,12.56260483,88.299,88.24,16.43529639]
[1772100734729,12.56260483,88.299,88.25,2.94999617]
[1772100735736,10.1925,88.298,88.25,2.94999617]
[1772100736046,12.56260483,88.289,88.23,2.94999617]
[1772100736430,15.512601,88.28,88.23,2.94999617]
[1772100737235,10.1946,88.279,88.23,2.94999617]
[1772100737445,15.512601,88.28,88.23,2.94999617]
[1772100738137,15.512601,88.28,88.22,2.94999617]
[1772100738338,22.75820483,88.271,88.22,2.94999617]
[1772100738942,12.56260483,88.27,88.22,2.94999617]
[1772100739145,12.56260483,88.27,88.23,2.94999617]
[1772100740436,12.56260483,88.258,88.21,2.94999617]
[1772100740842,12.56260483,88.258,88.202,13.48530022]
[1772100741044,12.56260483,88.255,88.202,13.48530022]
[1772100741342,12.56260483,88.255,88.2,2.94999617]
[1772100742438,12.56260483,88.255,88.21,2.94999617]
[1772100744946,12.56260483,88.249,88.191,13.48530022]
[1772100745245,12.56260483,88.249,88.2,2.94999617]
[1772100745947,12.2060817,88.248,88.2,2.94999617]
[1772100747052,12.2060817,88.248,88.21,2.94999617]
[1772100747252,12.2060817,88.248,88.2,2.94999617]
[1772100748354,12.2060817,88.248,88.21,2.94999617]
[1772100748846,12.2060817,88.267,88.23,2.94999617]
[1772100753057,22.4020817,88.267,88.23,2.94999617]
[1772100753252,12.2060817,88.266,88.23,2.94999617]
[1772100757060,11.35111679,88.289,88.24,2.94999617]
[1772100757860,10.1937,88.287,88.24,2.94999617]
[1772100758060,11.35111679,88.286,88.24,2.94999617]
[1772100758358,476.032,88.227,88.06,2.94999617]
[1772100758565,2.94999617,88.12,88.06,2.94999617]
[1772100758757,2.94999617,88.11,88.06,2.94999617]
[1772100758958,5.09858194,88.131,88.08,18.99458347]
[1772100759163,2.94999617,88.14,88.09,2.94999617]
[1772100759355,7.94456457,88.16,88.08,16.0445873]
[1772100759853,7.94456457,88.14,88.054,16.04463019]
[1772100760459,7.94456457,88.14,88.056,16.04463019]
[1772100760959,7.94456457,88.14,88.068,15.87255012]
[1772100761164,7.94456457,88.16,88.068,15.87255012]
[1772100761662,10.2089,88.156,88.092,10.2162]
[1772100761960,7.94456457,88.18,88.093,15.87265665]
[1772100762756,10.2063,88.178,88.107,15.99224423]
[1772100762953,7.94456457,88.18,88.107,15.99224423]
[1772100763453,7.94456457,88.16,88.061,15.99224423]
[1772100764258,10.2113,88.135,88.072,15.99230332]
[1772100766861,10.2125,88.125,88.072,15.99230332]
[1772100767261,7.94456457,88.14,88.072,15.99230332]
[1772100768162,10.2112,88.136,88.072,15.99230332]
[1772100768562,7.94456457,88.14,88.072,15.99230332]
[1772100770367,10.2125,88.124,88.051,15.90193114]
[1772100771562,7.94456457,88.14,88.051,15.90193114]
[1772100771563,10.2137,88.115,88.051,15.90193114]
[1772100771962,7.94456457,88.14,88.051,15.90193114]
[1772100772159,7.94456457,88.14,88.03,7.94456457]
[1772100772160,10.2111,88.137,88.066,15.88127799]
[1772100772970,10.2099,88.147,88.073,15.87375169]
[1772100773567,7.94456457,88.15,88.089,15.87384154]
[1772100773764,7.94456457,88.19,88.091,15.87384154]
[1772100774971,10.2076,88.167,88.102,15.89109155]
[1772100775868,10.2064,88.177,88.108,15.89117832]
[1772100776968,10.2064,88.177,88.119,10.213]
[1772100777464,10.2053,88.187,88.124,15.87940681]
[1772100778267,10.2053,88.187,88.134,26.09080083]
[1772100778876,10.2053,88.187,88.134,15.87950083]
[1772100779171,10.2063,88.178,88.134,15.87950083]
[1772100782077,10.2072,88.17,88.134,15.87950083]
[1772100782973,10.2072,88.17,88.03,159.0307]
[1772100782974,10.2081,88.162,88.114,15.48054989]
[1772100789780,7.93997789,88.19,88.114,15.48054989]
[1772100790088,7.93997789,88.17,88.114,15.48054989]
[1772100790791,10.2082,88.162,88.114,15.48054989]
[1772100791489,10.209,88.155,88.114,15.48054989]
[1772100792888,7.93997789,88.17,88.098,15.50797714]
[1772100793983,10.2106,88.141,88.097,10.2156]
[1772100794491,7.93997789,88.17,88.103,25.72305921]
[1772100795691,28.34997789,88.19,88.103,15.50815921]
[1772100795894,7.93997789,88.17,88.103,15.50815921]
[1772100796690,10.2099,88.147,88.103,15.50815921]
[1772100797896,10.2099,88.147,88.104,15.49724584]
[1772100800093,10.2107,88.14,88.104,15.49724584]
[1772100802091,10.2099,88.147,88.104,15.49724584]
[1772100803295,7.93997789,88.17,88.104,15.49724584]
[1772100804491,8.68019707,88.169,88.104,15.49724584]
[1772100804899,10.2099,88.147,88.104,15.49724584]
[1772100805695,10.2099,88.147,88.105,15.87642253]
[1772100808498,10.2099,88.147,88.107,15.8714784]
[1772100809997,10.2105,88.142,88.107,15.8714784]
[1772100810398,2.96564754,88.15,88.107,15.8714784]
[1772100810599,2.96564754,88.15,87.996,48.09025532]
[1772100810600,8.71313284,88.118,88.04,2.96564754]
[1772100810895,2.96564754,88.11,88.05,2.96564754]
[1772100811601,2.96564754,88.13,88.07,2.96564754]
[1772100812097,10.2127,88.123,88.08,2.96564754]
[1772100812296,10.2127,88.123,88.073,10.2184]
[1772100812490,10.2127,88.123,88.074,12.10814987]
[1772100812692,10.2136,88.116,88.074,12.10814987]
[1772100813339,9.29900464,88.109,88.051,12.28192609]
[1772100814998,10.2154,88.099,88.051,12.28192609]
[1772100817198,2.96564754,88.1,88.051,12.28192609]
[1772100817905,2.96564754,88.11,88.071,12.28192609]
[1772100818303,9.48942689,88.109,88.055,12.28192609]
[1772100818996,9.48942689,88.109,88.056,12.28192609]
[1772100819199,2.96564754,88.1,88.056,12.28192609]
[1772100819802,13.18094754,88.1,88.056,12.28192609]
[1772100820603,2.96564754,88.09,88.042,12.28192609]
[1772100821496,10.2166,88.089,88.042,12.28192609]
[1772100823010,2.96564754,88.1,88.042,12.28192609]
[1772100823011,2.96564754,88.08,88.042,12.28192609]
[1772100824008,10.2178,88.079,88.042,12.28192609]
[1772100828015,8.9709711,88.066,88.02,10.2245]
[1772100828218,8.9709711,88.059,88.013,12.28192609]
[1772100830022,19.1910711,88.059,88.015,22.50702609]
[1772100832321,19.1910711,88.059,88.015,12.28192609]
[1772100832625,10.2209,88.052,88.015,12.28192609]
[1772100832822,8.9709711,88.059,88.015,12.28192609]
[1772100833827,8.78220754,88.099,88.041,12.28192609]
[1772100834326,8.78220754,88.099,88.05,2.96564754]
[1772100834929,10.2171,88.085,88.05,2.96564754]
[1772100836825,10.2171,88.085,88.041,12.28192609]
[1772100837430,10.2171,88.085,88.043,10.99120296]
[1772100837827,8.78220754,88.099,88.06,24.1767505]
[1772100838328,17.99006458,88.113,88.07,2.96564754]
[1772100838529,17.99006458,88.113,88.071,10.99120296]
[1772100839324,7.77616458,88.113,88.071,10.99120296]
[1772100839528,10.2147,88.106,88.06,2.96564754]
[1772100840141,2.96564754,88.11,88.068,10.219]
[1772100840329,7.77616458,88.113,88.068,10.219]
[1772100840525,7.77616458,88.113,88.026,20.4478]
[1772100840526,7.77616458,88.113,88.074,10.2182]
[1772100840729,10.2137,88.114,88.08,2.96564754]
[1772100840931,10.2137,88.114,88.075,10.99120296]
[1772100845227,2.96564754,88.12,88.075,10.99120296]
[1772100845737,18.05780447,88.129,88.075,10.99120296]
[1772100846837,6.87310732,88.119,88.06,2.96564754]
[1772100847132,6.87310732,88.109,88.058,10.99120296]
[1772100847541,17.08750732,88.109,88.058,10.99120296]
[1772100847740,2.96820659,88.1,88.058,10.99120296]
[1772100848440,6.87310732,88.109,88.058,10.99120296]
[1772100849045,17.08740732,88.109,88.065,10.99120296]
[1772100849633,2.96820659,88.1,88.027,10.99120296]
[1772100849841,2.96820659,88.1,88.051,10.99120296]
[1772100850936,10.2154,88.099,88.055,10.99120296]
[1772100852036,10.2162,88.093,88.055,10.99120296]
[1772100852241,6.30708509,88.089,88.042,10.99120296]
[1772100852547,9.27529168,88.08,88.03,10.99120296]
[1772100852741,6.30708509,88.08,88.04,2.96820659]
[1772100853043,6.20798578,88.099,88.041,10.99120296]
[1772100853238,10.2171,88.085,88.041,10.99120296]
[1772100853635,6.20798578,88.089,88.041,10.99120296]
[1772100854740,10.2168,88.088,88.041,10.99120296]
[1772100858038,10.2168,88.088,88.042,10.99120296]
[1772100860337,10.2174,88.082,88.042,10.99120296]
[1772100860740,10.2182,88.076,88.042,10.99120296]
[1772100861246,5.18584291,88.079,88.027,21.21490296]
[1772100861447,5.18584291,88.079,88.028,10.99120296]
[1772100861943,5.18584291,88.079,87.984,10.99120296]
[1772100862243,2.96820659,88.04,87.991,10.99120296]
[1772100862544,5.08914351,88.048,87.991,10.99120296]
[1772100863147,2.96820659,88.04,87.991,10.99120296]
[1772100865038,10.2226,88.038,87.991,10.99120296]
[1772100865243,5.08914351,88.048,87.991,10.99120296]
[1772100865551,5.08914351,88.048,87.993,10.99120296]
[1772100866050,5.08914351,88.048,87.992,10.2277]
[1772100866051,5.87297213,88.059,88.001,9.83084137]
[1772100867045,5.87297213,88.059,88.002,9.83084137]
[1772100867740,10.2214,88.048,88.002,9.83084137]
[1772100868351,10.2219,88.044,88.002,9.83084137]
[1772100869144,10.2219,88.044,87.992,10.2278]
[1772100869145,10.2245,88.021,87.984,9.83084137]
[1772100869346,2.96820659,88.01,87.97,9.83084137]
[1772100869751,10.2264,88.005,87.97,9.83084137]
[1772100870252,10.2264,88.005,87.954,9.83084137]
[1772100870447,8.0518716,88.03,87.971,9.83084137]
[1772100870846,8.0518716,88.03,87.98,2.96820659]
[1772100871353,8.0518716,88.03,87.981,9.83084137]
[1772100871354,18.2753716,88.03,87.981,9.83084137]
[1772100872348,10.2243,88.023,87.981,9.83084137]
[1772100872750,10.2252,88.015,87.97,2.96820659]
[1772100872957,10.2252,88.015,87.922,54.4118]
[1772100872958,2.96820659,88.01,87.967,9.83084137]
[1772100873846,10.2262,88.006,87.967,9.83084137]
[1772100876052,10.227,87.999,87.967,9.83084137]
[1772100876454,10.227,87.999,87.951,9.38867302]
[1772100877950,14.67214369,87.995,87.951,9.38867302]
[1772100878156,20.4456,88.036,87.951,9.38867302]
[1772100878157,2.96820659,87.99,87.951,9.38867302]
[1772100878359,4.44454369,87.989,87.94,2.96820659]
[1772100878660,4.45307646,88.006,87.951,9.38867302]
[1772100879759,10.2271,87.999,87.951,9.38867302]
[1772100879957,4.2978972,87.998,87.951,9.38867302]
[1772100880158,4.2978972,87.989,87.931,9.38867302]
[1772100880358,10.2295,87.978,87.931,9.38867302]
[1772100880849,14.42206705,87.978,87.931,9.38867302]
[1772100881253,2.96820659,87.99,87.942,9.38867302]
[1772100881453,4.19256705,87.992,87.942,9.38867302]
[1772100881758,10.2244,88.022,87.98,2.96820659]
[1772100882463,10.2244,88.022,87.973,9.38867302]
[1772100883168,2.96820659,88.02,87.973,9.38867302]
[1772100883468,3.8739361,88.022,87.973,9.38867302]
[1772100883469,3.8739361,88.022,87.98,2.96820659]
[1772100883668,10.2246,88.021,87.98,2.96820659]
[1772100883865,10.2246,88.021,87.973,9.38867302]
[1772100884461,10.2254,88.013,87.973,9.38867302]
[1772100884966,3.0963105,88.009,87.96,2.96820659]
[1772100885764,10.2278,87.993,87.956,9.38867302]
[1772100885963,13.25205663,87.993,87.95,2.96820659]
[1772100886363,3.02425663,88.008,87.952,9.38867302]
[1772100886964,2.93459621,87.999,87.952,9.38867302]
[1772100887166,2.96820659,87.98,87.931,9.38867302]
[1772100887566,10.2294,87.979,87.931,9.38867302]
[1772100887767,10.2294,87.979,87.92,2.96820659]
[1772100887768,2.96820659,87.97,87.92,2.96820659]
[1772100887965,2.96820659,87.97,87.921,9.38867302]
[1772100888166,2.93159574,87.978,87.921,9.38867302]
[1772100888871,10.2306,87.969,87.921,9.38867302]
[1772100890463,10.2295,87.978,87.923,9.38867302]
[1772100891868,10.2295,87.978,87.928,9.38867302]
[1772100892265,10.2286,87.986,87.928,9.38867302]
[1772100893274,10.229,87.982,87.93,9.38867302]
[1772100894175,7.97479164,88.0,87.93,9.38867302]
[1772100894176,1.87704521,87.981,87.93,9.38867302]
[1772100894474,1.87704521,87.989,87.93,9.38867302]
[1772100895975,10.2296,87.978,87.93,9.38867302]
[1772100897174,10.2296,87.978,87.91,7.97479164]
[1772100897175,10.2287,87.985,87.932,8.11339212]
[1772100897874,12.00393975,87.985,87.932,8.11339212]
[1772100898073,7.97479164,88.0,87.932,8.11339212]
[1772100898074,10.229,87.982,87.934,10.2345]
[1772100900179,10.229,87.982,87.934,18.34789212]
[1772100900579,10.229,87.982,87.935,8.11339212]
[1772100900873,33.94,88.04,87.91,7.97479164]
[1772100900874,1.49503235,87.999,87.937,8.11339212]
[1772100901479,10.2286,87.986,87.94,8.11339212]
[1772100901780,1.49503235,87.999,87.94,8.11339212]
[1772100902177,1.43744143,87.986,87.94,8.11339212]
[1772100903469,1.50964876,87.984,87.926,8.11339212]
[1772100904483,10.2304,87.97,87.928,8.11339212]
[1772100904682,1.50964876,87.984,87.928,8.11339212]
[1772100905984,10.2304,87.97,87.928,8.11339212]
[1772100906780,1.28898832,88.005,87.928,8.11339212]
[1772100906985,1.28898832,87.991,87.93,8.11339212]
[1772100907184,1.28898832,87.989,87.901,8.11339212]
[1772100907786,1.28898832,87.971,87.92,8.11339212]
[1772100908688,10.2305,87.97,87.921,18.34939212]
[1772100908886,10.2305,87.97,87.922,8.11339212]
[1772100909290,13.20761609,87.97,87.922,8.11339212]
[1772100909488,10.2297,87.977,87.931,8.11339212]
[1772100909879,158.9554,88.073,87.931,8.11339212]
[1772100910077,2.97711609,87.99,87.945,8.11339212]
[1772100910682,2.97711609,87.99,87.947,8.11416559]
[1772100910878,10.2279,87.992,87.947,8.11416559]
[1772100911090,2.97711609,87.99,87.947,8.11416559]
[1772100911598,10.2291,87.982,87.947,8.11416559]
[1772100911783,2.97711609,88.0,87.951,8.11448313]
[1772100912282,11.03844588,87.999,87.951,8.11448313]
[1772100912489,0.81144588,87.999,87.951,8.11448313]
[1772100913088,10.2288,87.985,87.951,8.11448313]
[1772100913285,10.2288,87.985,87.938,8.11339212]
[1772100914689,10.2288,87.985,87.94,8.11339212]
[1772100915088,0.96910551,87.979,87.926,8.11339212]
[1772100915791,0.96910551,87.979,87.928,8.11339212]
[1772100915985,2.97711609,87.98,87.931,8.11339212]
[1772100916291,0.91949689,87.979,87.931,8.11339212]
[1772100917693,10.2301,87.973,87.931,8.11339212]
[1772100917890,0.86043733,87.939,87.864,8.11339212]
[1772100918193,2.97711609,87.93,87.871,8.11339212]
[1772100918389,0.86043733,87.929,87.87,2.97711609]
[1772100918595,2.97711609,87.91,87.864,8.11339212]
[1772100919399,10.2375,87.909,87.864,8.11339212]
[1772100920295,2.97711609,87.9,87.849,8.11339212]
[1772100920500,2.97711609,87.9,87.85,2.97711609]
[1772100921092,2.97711609,87.89,87.849,8.11339212]
[1772100921296,0.88505225,87.908,87.849,8.11339212]
[1772100921493,2.97711609,87.91,87.86,2.97711609]
[1772100921698,10.2364,87.919,87.87,2.97711609]
[1772100922098,20.4593,87.977,87.87,2.97711609]
[1772100922099,0.88359649,87.938,87.87,10.242]
[1772100922300,0.88359649,87.938,87.871,8.11339212]
[1772100922602,2.97711609,87.92,87.871,8.11339212]
[1772100923896,0.81772726,87.941,87.881,8.11339212]
[1772100924094,2.97711609,87.94,87.891,8.11339212]
[1772100924501,2.97711609,87.93,87.891,8.11339212]
[1772100925693,2.97711609,87.93,87.88,2.97711609]
[1772100925894,13.21221609,87.93,87.88,10.89810444]
[1772100926095,10.2351,87.93,87.881,7.92098835]
[1772100929301,11.05182726,87.939,87.881,7.92098835]
[1772100929704,11.05182726,87.939,87.882,7.96376556]
[1772100930902,11.05182726,87.939,87.884,7.95101046]
[1772100931603,10.233,87.948,87.893,7.95101046]
[1772100933005,10.233,87.948,87.896,7.96429033]
[1772100933502,0.25548952,87.955,87.896,7.96429033]
[1772100934500,10.2325,87.953,87.899,7.96491435]
[1772100934706,0.08980749,87.952,87.899,7.96491435]
[1772100936302,7.98144528,87.95,87.871,7.97620876]
[1772100937906,7.98144528,87.95,87.875,7.96557318]
[1772100939009,7.98144528,87.95,87.86,7.98144528]
[1772100939010,10.2361,87.921,87.876,18.21830977]
[1772100939909,10.2361,87.921,87.876,7.97700977]
[1772100941110,10.2352,87.929,87.876,7.97700977]
[1772100942512,10.2341,87.939,87.876,7.97700977]
[1772100942710,10.2341,87.939,87.88,7.98144528]
[1772100942910,7.98144528,87.97,87.882,10.2406]
[1772100943109,7.98144528,87.97,87.883,7.93694411]
[1772100943310,10.2349,87.932,87.883,7.93694411]
[1772100943514,20.4614,87.968,87.883,7.93694411]
[1772100944117,10.234,87.939,87.885,7.93756546]
[1772100944313,7.98144528,87.97,87.885,7.93756546]
[1772100945315,10.2322,87.955,87.9,8.02336932]
[1772100945718,7.98144528,87.99,87.9,8.02336932]
[1772100945913,10.2303,87.971,87.923,8.02379466]
[1772100946124,7.98144528,87.99,87.923,8.02379466]
[1772100946426,10.2302,87.972,87.925,8.02379466]
[1772100949722,10.2302,87.972,87.931,8.0470084]
[1772100949928,10.229,87.983,87.935,8.0470084]
[1772100950130,2.97695805,87.99,87.941,8.0470084]
[1772100950627,2.97695805,87.99,87.945,8.0470084]
[1772100950830,2.97695805,88.0,87.945,8.0470084]
[1772100951025,2.97695805,87.99,87.945,8.0470084]
[1772100951529,2.97695805,87.98,87.931,8.03045423]
[1772100953930,10.2294,87.979,87.931,8.03045423]
[1772100954833,10.2302,87.972,87.931,8.03045423]
[1772100958234,13.20625805,87.98,87.931,8.03045423]
[1772100960634,10.2301,87.973,87.931,8.03045423]
[1772100963139,10.2301,87.973,87.873,34.11]
[1772100963140,2.97695805,87.94,87.873,8.13782279]
[1772100963333,5.11559001,87.971,87.873,8.13782279]
[1772100963334,2.97695805,87.92,87.873,8.13782279]
[1772100963532,2.97695805,87.91,87.873,8.13782279]
[1772100964839,2.97695805,87.93,87.873,8.13782279]
[1772100965244,34.11,87.964,87.873,8.13782279]
[1772100965245,7.98294405,87.95,87.873,8.13782279]
[1772100966935,10.2352,87.929,87.882,18.36892635]
[1772100967441,10.2352,87.929,87.883,8.12832635]
[1772100969640,10.2359,87.923,87.883,8.12832635]
[1772100969834,7.98294405,87.95,87.878,8.14160644]
[1772100970547,10.2361,87.922,87.878,8.14160644]
[1772100971238,10.2352,87.929,87.878,8.14160644]
[1772100972237,10.236,87.922,87.878,8.14160644]
[1772100974641,10.2367,87.916,87.878,8.14160644]
[1772100975441,10.235,87.931,87.878,8.14160644]
[1772100975848,7.98238408,87.95,87.878,8.14160644]
[1772100976048,7.98238408,87.93,87.851,8.11858232]
[1772100976847,10.2364,87.919,87.853,8.11801239]
[1772100978252,10.2364,87.919,87.856,8.11825097]
[1772100979953,10.2364,87.919,87.858,8.11736306]
[1772100980453,10.237,87.913,87.861,8.11736306]
[1772100981055,10.2363,87.919,87.863,8.120945]
[1772100981548,10.237,87.914,87.866,8.120945]
[1772100982350,10.2378,87.907,87.853,8.12116729]
[1772100982944,7.98238408,87.95,87.855,8.13031446]
[1772100984952,10.2367,87.917,87.864,8.10999106]
[1772100985254,2.98123285,87.91,87.864,8.10999106]
[1772100987746,10.2375,87.909,87.864,8.10999106]
[1772100990460,2.98123285,87.91,87.866,8.08496016]
[1772100990651,10.2367,87.916,87.866,8.08496016]
[1772100991963,10.2367,87.916,87.868,8.05137409]
[1772100992863,10.2367,87.916,87.868,8.05137409]
[1772100993460,20.4631,87.961,87.874,8.02844418]
[1772100993764,2.98123285,87.94,87.881,8.02882463]
[1772100994157,2.98123285,87.93,87.881,8.02882463]
[1772100994359,10.2359,87.923,87.881,8.02882463]
[1772100994553,2.98123285,87.93,87.881,8.02882463]
[1772100995058,10.2354,87.927,87.883,10.2404]
[1772100995253,10.2354,87.927,87.884,8.01043508]
[1772100998969,10.2361,87.921,87.884,8.01043508]
[1772100999358,2.98123285,87.93,87.884,8.01043508]
[1772101000075,2.98123285,87.93,87.872,8.02169874]
[1772101000264,2.98123285,87.93,87.88,2.98123285]
[1772101000466,2.98123285,87.94,87.881,8.02169874]
[1772101000665,2.98123285,87.94,87.89,2.98123285]
[1772101000871,2.98123285,87.94,87.891,8.03698851]
[1772101001470,10.2352,87.929,87.891,8.03698851]
[1772101002068,2.98123285,87.94,87.891,8.03698851]
[1772101002579,2.98123285,87.93,87.891,8.03698851]
[1772101003677,10.2355,87.926,87.891,8.03698851]
[1772101003872,2.98123285,87.94,87.891,8.03698851]
[1772101004868,10.2348,87.933,87.891,8.03698851]
[1772101007477,2.98123285,87.93,87.891,8.03698851]
[1772101007875,10.2352,87.929,87.891,8.03698851]
[1772101010378,10.2362,87.921,87.891,8.03698851]
[1772101011274,10.2369,87.915,87.891,8.03698851]
[1772101011777,2.98123285,87.9,87.871,8.0831741]
[1772101012278,2.98123285,87.9,87.851,8.0831741]
[1772101012480,10.2396,87.891,87.851,8.0831741]
[1772101012977,5.25076621,87.879,87.789,28.14167897]
[1772101013175,5.25076621,87.895,87.83,2.98123285]
[1772101013682,5.25076621,87.895,87.84,2.98123285]
[1772101013873,10.2404,87.885,87.84,2.98123285]
[1772101015075,10.2404,87.885,87.841,6.81900489]
[1772101016183,5.25076621,87.895,87.841,6.81900489]
[1772101017878,4.98617923,87.908,87.851,6.30684206]
[1772101018073,4.98617923,87.908,87.861,6.30684206]
[1772101018881,5.21501963,87.904,87.861,6.30684206]
[1772101020181,10.2382,87.903,87.861,6.30684206]
[1772101021183,5.21501963,87.904,87.861,6.30684206]
[1772101023084,159.1653,87.957,87.802,20.5]
[1772101023085,5.08126355,87.899,87.848,6.30684206]
[1772101023488,5.08126355,87.889,87.848,6.30684206]
[1772101023886,10.2401,87.887,87.848,6.30684206]
[1772101024181,5.08126355,87.889,87.848,6.30684206]
[1772101027588,15.32116355,87.889,87.848,6.30684206]
[1772101027884,4.9848173,87.888,87.848,6.30684206]
[1772101028986,10.2401,87.887,87.848,6.30684206]
[1772101032086,10.2391,87.896,87.851,6.30684206]
[1772101032881,14.95592079,87.896,87.851,6.30684206]
[1772101033086,4.71682079,87.889,87.84,2.98244264]
[1772101033289,4.71682079,87.889,87.841,6.30684206]
[1772101034888,14.95662079,87.889,87.842,6.30684206]
[1772101037191,10.2404,87.885,87.842,6.30684206]
[1772101038594,14.59211982,87.885,87.842,6.30684206]
[1772101039188,14.56960155,87.883,87.842,6.30684206]
[1772101039389,10.2406,87.883,87.842,6.30684206]
[1772101040792,42.76745811,87.927,87.794,15.93061886]
[1772101041094,8.65745811,87.926,87.841,15.93061886]
[1772101041288,10.2378,87.907,87.851,15.93061886]
[1772101041487,10.2378,87.907,87.861,15.93061886]
[1772101048195,2.98244264,87.91,87.861,15.93061886]
[1772101048500,2.98244264,87.93,87.871,15.89012653]
[1772101048798,2.98244264,87.94,87.881,15.89012653]
[1772101049299,10.2354,87.928,87.881,15.89012653]
[1772101050191,2.98244264,87.91,87.881,15.89012653]
[1772101050395,2.98244264,87.91,87.86,2.98244264]
[1772101050396,2.98244264,87.91,87.861,15.89609566]
[1772101050592,10.2385,87.901,87.861,15.89609566]
[1772101050797,2.98244264,87.91,87.861,15.89609566]
[1772101051200,10.2375,87.909,87.861,15.89609566]
[1772101051502,2.98244264,87.91,87.861,15.89609566]
[1772101051899,10.2384,87.902,87.861,15.89609566]
[1772101052593,13.21994264,87.91,87.861,15.89609566]
[1772101053598,2.98244264,87.89,87.841,15.87497216]
[1772101054398,10.2399,87.889,87.841,15.87497216]
[1772101054704,10.2399,87.889,87.85,18.8574148]
[1772101055197,2.98244264,87.89,87.837,15.89879808]
[1772101055404,2.98244264,87.89,87.841,15.89879808]
[1772101055697,2.98244264,87.9,87.841,15.89879808]
[1772101056097,8.69512406,87.919,87.787,34.11]
[1772101056098,10.2387,87.899,87.851,15.89879808]
[1772101056897,10.2378,87.907,87.851,15.89879808]
[1772101057404,2.98244264,87.9,87.851,15.89879808]
[1772101057604,2.98244264,87.88,87.83,2.98244264]
[1772101057804,2.98244264,87.88,87.831,15.85437561]
[1772101059001,10.2411,87.879,87.831,15.85437561]
[1772101060499,2.98244264,87.89,87.841,15.84065463]
[1772101060701,2.98244264,87.9,87.851,15.83472048]
[1772101060906,2.98244264,87.89,87.851,15.83472048]
[1772101061502,159.1763,87.951,87.831,15.83472048]
[1772101061503,2.98244264,87.88,87.831,15.83472048]
[1772101061807,2.98244264,87.89,87.841,15.83472048]
[1772101062404,2.98244264,87.88,87.841,15.83472048]
[1772101063406,10.2413,87.877,87.841,15.83472048]
[1772101063608,2.98244264,87.9,87.841,15.83472048]
[1772101064202,10.2399,87.889,87.841,15.83472048]
[1772101065305,10.2407,87.882,87.841,15.83472048]
[1772101065804,2.98244264,87.88,87.829,15.86882493]
[1772101066010,2.98244264,87.87,87.829,15.86882493]
[1772101066402,10.2423,87.868,87.829,15.86882493]
[1772101066605,2.98244264,87.86,87.821,15.83599093]
[1772101066802,2.98244264,87.84,87.78,2.98244264]
[1772101067000,10.2461,87.836,87.782,10.2523]
[1772101067499,10.2452,87.843,87.739,5.12008398]
[1772101067702,10.2452,87.843,87.741,28.25901397]
[1772101068111,10.2443,87.851,87.8,2.98244264]
[1772101068306,2.98244264,87.86,87.81,2.98244264]
[1772101068507,2.98244264,87.87,87.81,2.98244264]
[1772101068806,2.98244264,87.87,87.811,7.89325756]
[1772101069007,10.2441,87.853,87.811,7.89325756]
[1772101069206,2.98244264,87.87,87.811,7.89325756]
[1772101069609,2.98244264,87.86,87.811,7.89325756]
[1772101069808,2.98244264,87.85,87.811,7.89325756]
[1772101070807,10.2446,87.849,87.811,7.89325756]
[1772101072506,10.2456,87.84,87.791,7.90334913]
[1772101072705,2.98244264,87.85,87.791,7.90334913]
[1772101073116,10.2441,87.853,87.801,7.84689713]
[1772101073317,2.98244264,87.85,87.801,7.84689713]
[1772101074115,10.2445,87.849,87.801,7.84689713]
[1772101074514,2.98244264,87.86,87.803,7.84689713]
[1772101074817,10.2441,87.853,87.803,7.84689713]
[1772101075213,10.2435,87.858,87.811,7.82137305]
[1772101075724,20.4785,87.895,87.811,7.82137305]
[1772101075918,2.98244264,87.86,87.811,7.82137305]
[1772101076817,10.2435,87.858,87.811,7.82137305]
[1772101077621,2.98244264,87.85,87.811,7.82137305]
[1772101078115,2.98244264,87.86,87.811,7.82137305]
[1772101078322,2.98244264,87.87,87.813,7.83226479]
[1772101078511,2.98244264,87.88,87.821,7.83226479]
[1772101078715,2.98244264,87.88,87.831,7.82092558]
[1772101080020,10.2413,87.877,87.831,7.82092558]
[1772101080622,10.242,87.871,87.831,7.82092558]
[1772101080924,2.98244264,87.9,87.841,7.83480432]
[1772101081616,10.2386,87.9,87.851,7.83480432]
[1772101082216,10.2376,87.908,87.861,7.83480432]
[1772101082619,2.98244264,87.91,87.861,7.83480432]
[1772101082820,10.2366,87.917,87.861,7.83480432]
[1772101083016,2.98244264,87.92,87.861,7.83480432]
[1772101083423,10.2385,87.9,87.861,7.83480432]
[1772101083618,2.98244264,87.91,87.861,7.83480432]
[1772101085026,10.2376,87.909,87.861,7.83480432]
[1772101085517,8.65252905,87.943,87.861,7.83480432]
[1772101085717,2.98244264,87.91,87.861,7.83480432]
[1772101086924,10.2383,87.903,87.861,7.83480432]